Cogmind - Beta 15 @@@ ROGUE MODE // 2025.10.20 @ 01:44:48 Player: glitchbuggaming Result: Core destroyed Performance ------------- Evolutions (1) 500 Regions Visited (2) 400 Robots Destroyed (16) 80 Value Destroyed (377) 377 Prototype IDs (1) 20 Alien Tech Used (0) 0 Bonus (0) 0 TOTAL SCORE: 1377 Bonus ------- None Cogmind --------- Core Integrity 0/400 Matter 275/300 Energy 44/100 System Corruption 0% Temperature Critical (501) Movement Core (150) Ox2 Location -9/Materials Parts ------- > --- POWER (1) -------- (None) > --- PROPULSION (3) --- (None) > --- UTILITY (2) ------ (None) > --- WEAPON (3) ------- Advanced Beam Cannon Advanced Beam Cannon > --- INVENTORY (5) ---- Large Storage Unit Improved Terrain Scanner Peak State ------------ > --- POWER ------------ Light Ion Engine > --- PROPULSION ------- Aluminum Leg Aluminum Leg Aluminum Leg > --- UTILITY ---------- Improved Heat Sink Small Storage Unit > --- WEAPON ----------- Particle Gun Particle Gun Advanced Beam Cannon > --- INVENTORY -------- Light Ion Engine Improved Terrain Scanner Advanced Beam Cannon Advanced Beam Cannon Advanced Beam Cannon [Rating: 16] Favorites ----------- Power Light Ion Engine Engine Light Ion Engine Propulsion Aluminum Leg Leg Aluminum Leg Wheel Wheel Utility Small Storage Unit Device Improved Heat Sink Storage Small Storage Unit Processor Targeting Computer Weapon Medium Laser Energy Gun Medium Laser Energy Cannon Advanced Beam Cannon Ballistic Gun Assault Rifle Build | -11 -10 -9 ------- Run | Yrd Mat Mat Slots Evolved 2 | . . 2 Power . | . . . Propulsion 1 | . . 1 Utility . | . . . Weapon 1 | . . 1 Parts Attached 20 | 8 6 6 Power 3 | 1 1 1 Engine 3 | 1 1 1 Core . | . . . Reactor . | . . . Propulsion 4 | 3 1 . Treads . | . . . Leg 3 | 2 1 . Wheel 1 | 1 . . Hover . | . . . Flight . | . . . Utility 5 | 2 2 1 Device 2 | 1 1 . Storage 2 | 1 . 1 Processor 1 | . 1 . Hackware . | . . . Protection . | . . . Artifact . | . . . Weapon 8 | 2 2 4 Energy Gun 4 | 1 1 2 Energy Cannon 3 | . 1 2 Ballistic Gun 1 | 1 . . Ballistic Cannon . | . . . Launcher . | . . . Special Weapon . | . . . Impact Weapon . | . . . Slashing Weapon . | . . . Piercing Weapon . | . . . Special Melee Weapon . | . . . Unidentified Prototypes 1 | . 1 . Parts Lost 12 | . 3 9 Power 2 | . . 2 Propulsion 3 | . . 3 Utility 2 | . 1 1 Weapon 5 | . 2 3 Highest Loss Streak 9 | . 1 9 To Critical Strikes . | . . . Average Backups 3 | . 4 5 Power . | . 1 . Propulsion . | . . . Utility 1 | . 1 1 Weapon 1 | . 1 2 Tool/Special . | . . . Unused Backups 1 | . . 1 Power . | . . . Propulsion . | . . . Utility . | . . . Weapon 1 | . . 1 Tool/Special . | . . . Average Slot Usage (%) 92 | . 95 80 Engine 13 | . 14 9 Leg 27 | . 28 24 Device 4 | . 3 9 Storage 12 | . 14 8 Processor 5 | . 7 . Energy Gun 14 | . 14 16 Energy Cannon 3 | . 1 11 Ballistic Gun 8 | . 11 . Peak Build Rating 16 | 9 12 16 Average Rating 8 | 4 7 13 On Entrance 6 | . 9 11 Naked Turns 8 | . . 8 Heaviest Build 19 | 13 13 19 Greatest Support 30 | 20 20 30 Greatest Overweight (x) 4 | 4 4 3 Average Overweight (x) 1 | 1 1 . Largest Inventory Capacity 15 | 8 8 15 Average Capacity 7 | 6 8 7 Most Carried 8 | 3 8 7 Average Carried 3 | . 4 5 Final Capacity 8 | 8 8 5 Final Carried 8 | 2 8 2 Class Distribution -------------------- 87% | Mutant 12% | Scavenger-Gunner Dominant Class ---------------- Mutant | -10/Materials Scavenger-Gunner | -9/Materials Resources | -11 -10 -9 ----------- Run | Yrd Mat Mat Matter Collected 432 | 259 124 49 Remotely . | . . . Salvage Created 486 | 41 340 105 Parts 30 | 6 14 10 Haulers Intercepted . | . . . Recyclers Shooed . | . . . Parts Field Recycled . | . . . Retrieved Matter . | . . . Parts Self-Destructed . | . . . Prevented . | . . . Kills | -11 -10 -9 ------- Run | Yrd Mat Mat Combat Hostiles Destroyed 11 | . 7 4 Guns 8 | . 6 2 Cannons 2 | . . 2 AOE 1 | . 1 . Classes Destroyed 6 | 1 3 2 Worker 1 | . 1 . Builder 1 | . . 1 Tunneler 2 | 2 . . Watcher 1 | . 1 . Swarmer 3 | . . 3 Grunt 8 | . 7 1 Best Kill Streak 4 | 2 4 3 Combat Bots Only 2 | . 2 2 Max Kills in Single Turn 2 | 1 2 1 Gunslinging . | . . . Exploded 1 | . 1 . Melee . | . . . Uniques/NPCs Destroyed . | . . . Combat | -11 -10 -9 -------- Run | Yrd Mat Mat Hostile Shots Fired 124 | . 54 70 Missed 26 | . 15 11 Hits 98 | . 39 59 Projectile 98 | . 39 59 Critical Strikes 1 | . . 1 Damage Taken 1425 | . 523 902 Core 551 | . 108 443 Absorbed by Shields . | . . . Core Remaining (%) 78 | 100 56 . Volleys Fired 55 | 6 32 17 Largest 3 | 1 2 3 Hottest 198 | 50 118 198 Shots Fired 108 | 6 61 41 Gun 84 | 6 60 18 Cannon 24 | . 1 23 Launcher . | . . . Special . | . . . Kinetic 17 | . 17 . Thermal 80 | 6 33 41 Explosive . | . . . Electromagnetic 11 | . 11 . Robot Hit Streak 12 | 1 12 5 Robot Miss Streak 7 | 2 2 7 Penetration Max . | . . . Secondary Targets 1 | . 1 . Max Gunslinging Chain 1 | . 1 . Shots Hit Robots 64 | 2 45 17 Core Hits 29 | 2 21 6 Critical Kills . | . . . Critical Parts Destroyed . | . . . Critical Strikes 2 | . 2 . Burn 2 | . 2 . Melee Attacks . | . . . Impact . | . . . Slashing . | . . . Piercing . | . . . Sneak Attacks . | . . . Combat Hostiles . | . . . Follow-up Attacks . | . . . Damage Inflicted 1129 | 51 686 392 Guns 814 | 51 606 157 Cannons 246 | . 20 226 Explosions 60 | . 60 . Melee . | . . . Ramming 9 | . . 9 Kinetic 164 | . 164 . Thermal 830 | 51 396 383 Explosive . | . . . Electromagnetic 126 | . 126 . Impact . | . . . Slashing . | . . . Piercing . | . . . Highest Corruption . | . . . Average Corruption . | . . . Corruption Purged . | . . . Corruption Blocked . | . . . Overload Shots . | . . . Overflow Damage 6 | . . 6 Projectiles 6 | . . 6 Explosions . | . . . Melee . | . . . Knockbacks . | . . . Impact . | . . . Kinetic . | . . . Secondary . | . . . Self-Inflicted Damage 20 | . 16 4 Shots 1 | . 1 . Rammed 1 | . . 1 Targets Rammed 1 | . . 1 Kicked . | . . . Crushed . | . . . Highest Temperature 617 | 50 132 617 Average Temperature 155 | 23 46 314 Received Heat Transfer 492 | . 279 213 Effects 15 | . . 15 Shutdowns 3 | . . 3 Energy Bleed 1 | . . 1 Interference 4 | . . 4 Damage (major) 3 | . . 3 Damage (core) 4 | . . 4 Siege Activations . | . . . Martial Activations . | . . . Shielding Activations . | . . . Robots Disrupted . | . . . Combat Hostiles . | . . . Robots Corrupted . | . . . Combat Hostiles . | . . . Parts Fried . | . . . Impact Corruptions . | . . . Robots Melted . | . . . Combat Hostiles . | . . . Parts Melted 1 | . 1 . Heat Transferred 2135 | 148 1210 777 Parts Sabotaged . | . . . Parts Stolen . | . . . Parts Stripped . | . . . Power Chain Reactions 1 | . 1 . Alert | -11 -10 -9 ------- Run | Yrd Mat Mat Maximum Alert Level . | . . . Low Security (%) 100 | 100 100 100 Level 1 . | . . . Level 2 . | . . . Level 3 . | . . . Level 4 . | . . . Level 5 . | . . . High Security . | . . . Max Security . | . . . Peak Influence 64 | 10 64 41 Initial 16 | . . 16 Average 13 | . 17 12 Influence Increases 325 | 10 213 102 Destroy 0b10 Robot/C 220 | . 140 80 Destroy 0b10 Robot/NC 25 | 10 10 5 Destroy Leader 42 | . 42 . Destroy Structure 8 | . 6 2 Partial Spotted 15 | . 15 . Lose Combat Pursuer 15 | . . 15 Influence Decreases 299 | 10 173 116 Entered New Map 24 | . . 24 Time Decay 229 | 10 163 56 Lost Part 46 | . 10 36 Squads Dispatched 2 | . 1 1 Investigation . | . . . Extermination . | . . . Reinforcement 2 | . 1 1 Assault . | . . . Garrison . | . . . Intercept . | . . . Searches Triggered . | . . . Construction Impeded . | . . . Haulers Reinforced . | . . . Active Scanning Responses . | . . . Cargo Convoy Interrupts . | . . . Stealth | -11 -10 -9 --------- Run | Yrd Mat Mat Distress Signals 6 | . . 6 Communications Jammed . | . . . Distress Signals . | . . . Times Spotted 24 | . 9 15 Peak Tracking Total 11 | . 2 11 Tactical Retreats 1 | . . 1 Traps | -11 -10 -9 ------- Run | Yrd Mat Mat Traps Triggered . | . . . Indirectly . | . . . Trap Hack Attempts . | . . . Triggered . | . . . Disarmed . | . . . Reprogrammed . | . . . Reused . | . . . Traps Extracted . | . . . Installed . | . . . Triggered . | . . . Machines | -11 -10 -9 ---------- Run | Yrd Mat Mat Machines Disabled . | . . . Max in Single Turn . | . . . Machines Repaired . | . . . Machines Dismantled . | . . . Machines Sabotaged . | . . . Overloaded Fab Kills . | . . . Hacking | -11 -10 -9 --------- Run | Yrd Mat Mat Machines Accessed 2 | . 2 . Terminals 1 | . 1 . Fabricators . | . . . Repair Stations . | . . . Recycling Units 1 | . 1 . Scanalyzers . | . . . Garrison Access . | . . . Total Hacks 4 | . 4 . Successful 2 | . 2 . Failed 2 | . 2 . Catastrophic . | . . . Database Lockouts . | . . . Manual . | . . . Terminals 2 | . 2 . Fabricators . | . . . Repair Stations . | . . . Recycling Units 2 | . 2 . Scanalyzers . | . . . Garrison Access . | . . . Terminal Hacks 1 | . 1 . Locate Traps 1 | . 1 . Fabricator Hacks . | . . . Repair Station Hacks . | . . . Recycling Unit Hacks 1 | . 1 . Retrieve Matter 1 | . 1 . Scanalyzer . | . . . Garrison Access Hacks . | . . . Unauthorized Hacks . | . . . Terminals . | . . . Fabricators . | . . . Repair Stations . | . . . Recycling Units . | . . . Scanalyzers . | . . . Garrison Access . | . . . Data Cores Recovered . | . . . Used . | . . . Hacking Detections 2 | . 2 . Full Trace Events . | . . . Feedback Events . | . . . Feedback Blocked . | . . . Robot Schematics Acquired . | . . . Robots Built . | . . . Authchips . | . . . Time . | . . . Total Robot Build Rating . | . . . Part Schematics Acquired . | . . . Parts Built . | . . . Authchips . | . . . Time . | . . . Total Part Build Rating . | . . . Parts Repaired . | . . . Time . | . . . Parts Recycled . | . . . Recycled Matter . | . . . Retrieved Matter . | . . . Retrieved Components . | . . . Parts Scanalyzed . | . . . Part Schematics Acquired . | . . . Parts Damaged . | . . . Bothacking | -11 -10 -9 ------------ Run | Yrd Mat Mat Used RIF Installer . | . . . Robots Hacked . | . . . Non-combat . | . . . Combat . | . . . Robot Hacks Applied . | . . . Relay Couplers Released . | . . . Fabnet Peak Effective % . | . . . Robots Rewired . | . . . Allies Hacked . | . . . Hacks Repelled . | . . . Allies | -11 -10 -9 -------- Run | Yrd Mat Mat Total Allies . | . . . Largest Group . | . . . Highest-Rated Group . | . . . Highest-Rated Ally . | . . . Total Orders . | . . . Ally Attacks . | . . . Total Damage . | . . . Kills . | . . . Allies Corrupted . | . . . Allies Melted . | . . . Intel | -11 -10 -9 ------- Run | Yrd Mat Mat Active Infowar (turns) 67 | 21 46 . Terrain 67 | 21 46 . Robot Analysis Total . | . . . Derelict Logs Recovered . | . . . Drone Launches . | . . . Drone Recoveries . | . . . Exploration | -11 -10 -9 ------------- Run | Yrd Mat Mat Turns Passed 948 | 158 628 162 Spaces Moved 491 | 102 300 89 Core 254 | 77 158 19 Treads . | . . . Legs 232 | 20 142 70 Wheels 5 | 5 . . Hover . | . . . Flight . | . . . Fastest Speed 50 | 50 120 50 Average Speed 148 | 128 165 112 Slowest Speed 250 | 250 250 200 Overloaded Moves . | . . . Propulsion Burnouts . | . . . Robots Hopped . | . . . Potential Cave-ins . | . . . Cave-ins Triggered . | . . . Exploration Rate (%) 18 | 4 40 10 Regions Visited 2 Branch Regions . Pre-discovered Areas . | . . . Known Exits Taken . | . . . Unknown Exits Taken 2 | 1 1 . Scrap Searched . | . . . Spaces Dug . | . . . Terrain Destroyed 5 | . 5 . Melee . | . . . Projectile . | . . . AOE 5 | . 5 . Terrain Rammed . | . . . Walls Destroyed . | . . . Machines Disabled . | . . . Actions | -11 -10 -9 --------- Run | Yrd Mat Mat Total 613 | 123 372 118 Wait 19 | . 19 . Move 489 | 101 299 89 Hop . | . . . Pick Up 19 | 6 12 1 Fast Attach 4 | 4 . . Attach 13 | 4 3 6 Detach 1 | 1 . . Swap 6 | . 3 3 Drop 6 | 1 4 1 Fire 55 | 6 32 17 Melee . | . . . Ram 1 | . . 1 Kick . | . . . Crush . | . . . Escape Stasis . | . . . Rewire . | . . . Trap . | . . . Miscellaneous . | . . . Route ------- -11/Scrapyard -10/Materials (discovered 2 exits: [*Mat] / [*Sub]) -9/Materials History --------- Turn | Location | Event 12 | -11/Scrapyard | Discovered new exit (range 16) 159 | -11/Scrapyard | Entered Materials 253 | -10/Materials | Discovered new exit (range 7) 302 | -10/Materials | Build established: Mutant 759 | -10/Materials | Derelicts attacked the area 775 | -10/Materials | Discovered new exit (range 11) 787 | -10/Materials | Entered another Materials area 787 | -9/Materials | Evolved 2 slots: Propulsion x1, Weapon x1 916 | -9/Materials | Core integrity fell below 50% 924 | -9/Materials | Core integrity fell below 20% 950 | -9/Materials | Core destroyed Last Messages --------------- 00918_ Overheating: Imp. Heat Sink damaged (-8). 00918_ Overheating: Adv. Beam Cannon damaged (-56). 00918_ Overheating: Particle Gun damaged (-5). 00918_ M-13 Machinist repairs G-34 Mercenary Sml. Laser. 00918_ Particle Gun destroyed. 00919_ K-01 Serf collects debris. 00920_ S-10 Pest destroyed. 00920_ K-01 Serf collects debris. 00921_ M-13 Machinist repairs G-34 Mercenary Ion Engine. 00921_ Imp. Heat Sink destroyed. 00922_ Adv. Beam Cannon destroyed. 00923_ K-01 Serf collects debris. 00923_ Slammed into K-01 Serf. 00923_ Lgt. Ion Engine destroyed. 00937_ S-10 Pest destroyed. 00943_ Destroyed Hover Unit. 00949_ Critical hit (Burn: +37). 00949_ U-05 Engineer destroyed. 00949_ Lgt. Ion Engine destroyed. 00950_ Overheating: Core damaged (-76). Map ----- +----------------------------------------------------+ | ????????????????????????????????????????????????? | | ????????????????????????????????????????????????? | | ????????????????????????????????????????????????? | | ????????????????????????????????????????????????? | | ????????????????????????????????????????????????? | | ????????????????????????????????????????????????? | | ????????????????????????????????????????????????? | | ????????????????????????????????????????????????? | | ????????????????????????????????????????????????? | | ????????????????????????????????????????????????? | | ???????????????????????????????????? ????????? | | ?????????????????????????? ??? ????? ????????? | | ?????????????????????????? ? ???? ????????? | | ??????????????############ ???? ?? ????? | | ??????????????# !??? "?? | | ??????????????# ?? "?? | | ??????????????# ??? ""? | | ??????????????### ####### #??????? "" | | ????????????????# #?????# ????????# """ | | ????????????????# #?????# ????????# """ | | ????????????????# #?????# ????????# """ | | ????????????????# #######+######### " | | ????????????????# w *[r ## | | ????????????????# =g# ## | | ????????????????# =# ## | | ????????????????# @# + | | ????????????????# %%g[ """ # | | ?????????????"" + """ # "Y" """ # | | ??????????? # """ # """ """[/% | | ??????????###??## """ # # | | ???????????????# ########### ! % | | ???????? ] *%[= | | ???????? ######################### | | ????????? ?????????????????????????? | | ????????? ##### ??????????????????????????? | | ???????????????######???????????????????????????? | | ????????????????????????????????????????????????? | | ????????????????????????????????????????????????? | | ????????????????????????????????????????????????? | | ????????????????????????????????????????????????? | | ????????????????????????????????????????????????? | | ????????????????????????????????????????????????? | | ????????????????????????????????????????????????? | | ????????????????????????????????????????????????? | | ????????????????????????????????????????????????? | | ????????????????????????????????????????????????? | | ????????????????????????????????????????????????? | | ????????????????????????????????????????????????? | | ????????????????????????????????????????????????? | | ????????????????????????????????????????????????? | +----------------------------------------------------+ Best States ------------- Heat Dissipation 42 Energy Generation 10 Energy Capacity 125 Matter Stores 300 Matter Capacity 300 Sight Range 16 Terrain Scan Range 16 Terrain Scan Density 10 Evasion (%) 55 Targeting Accuracy 5 Item Schematics ----------------- None Robot Schematics ------------------ None Fabricated ------------ Nothing Repaired ---------- Nothing Alien Tech Used ----------------- None Achievements -------------- None Challenges ------------ None Game ------ Seed ProtonEfficiencyDriver Manual? 0 Play Time 00:15:20 Cumulative 5.0 hours Start 2025.10.15 @ 20:00:24 End 2025.10.20 @ 01:44:48 Sessions 4 Manual Loads 0 Difficulty Rogue Special Mode None Game No. 14 Rogue 14 Adventurer 0 Explorer 0 Win Type - Total 0 Types 0/0/0/0/0/0/0/0/0/0 Lore% 5 Gallery% 6 Achievement% 10 Wizard Run 0 Options --------- Layout 0 ASCII 0 Keyboard 0 Movement Mouse Keybinds 0 Fullscreen 1 Font 24/Smallcaps Map View 76x50 Zoom Use 0% Tactical HUD 1 Map Filters NONE Filters NONE Steam 1 RUN: 83dc1e8f-0f09-48d2-83d4-7f197901db3e